[Event "Masters Tournament (MTO)"]
[Site "Biel, Switzerland"]
[Date "2026.07.18"]
[Round "6.17"]
[White "Georgescu, Lena"]
[Black "Tkhoruk, Roman"]
[Result "1-0"]
[TimeControl "100+30+30sec/move"]
[WhiteTitle "-"]
[BlackTitle "-"]
[WhiteFideId "1331973"]
[BlackFideId "34161589"]
[WhiteElo "2253"]
[BlackElo "1967"]

1. e4 {[%clk 01:40:57]} {[%emt 00:00:05]} c6 {[%clk 01:40:48]} {[%emt
00:00:11]} 2. d4 {[%clk 01:41:23]} {[%emt 00:00:04]} d5 {[%clk 01:41:10]}
{[%emt 00:00:08]} 3. e5 {[%clk 01:41:47]} {[%emt 00:00:06]} Bf5 {[%clk
01:41:31]} {[%emt 00:00:08]} 4. h4 {[%clk 01:42:12]} {[%emt 00:00:05]} h5
{[%clk 01:41:53]} {[%emt 00:00:09]} 5. c4 {[%clk 01:42:32]} {[%emt 00:00:10]}
dxc4 {[%clk 01:40:44]} {[%emt 00:01:38]} 6. Bxc4 {[%clk 01:41:43]} {[%emt
00:01:19]} e6 {[%clk 01:41:05]} {[%emt 00:00:09]} 7. Ne2 {[%clk 01:32:44]}
{[%emt 00:09:29]} Qc7 {[%clk 01:34:32]} {[%emt 00:07:03]} 8. Ng3 {[%clk
01:31:19]} {[%emt 00:01:55]} Bg6 {[%clk 01:34:46]} {[%emt 00:00:16]} 9. Nc3
{[%clk 01:28:28]} {[%emt 00:03:21]} Ne7 {[%clk 01:33:04]} {[%emt 00:02:12]} 10.
Bd3 {[%clk 01:15:17]} {[%emt 00:13:41]} Bxd3 {[%clk 01:30:57]} {[%emt
00:02:38]} 11. Qxd3 {[%clk 01:13:24]} {[%emt 00:02:23]} Nd5 {[%clk 01:16:18]}
{[%emt 00:15:09]} 12. Bg5 {[%clk 01:12:40]} {[%emt 00:01:13]} Nd7 {[%clk
01:06:27]} {[%emt 00:10:21]} 13. Nxd5 {[%clk 01:07:43]} {[%emt 00:05:28]} cxd5
{[%clk 01:06:41]} {[%emt 00:00:15]} 14. O-O {[%clk 01:07:49]} {[%emt 00:00:23]}
Be7 {[%clk 01:02:43]} {[%emt 00:04:28]} 15. Bxe7 {[%clk 01:07:36]} {[%emt
00:00:44]} Kxe7 {[%clk 01:03:04]} {[%emt 00:00:09]} 16. Qa3+ {[%clk 01:07:50]}
{[%emt 00:00:16]} Kd8 {[%clk 01:02:14]} {[%emt 00:01:19]} 17. Rac1 {[%clk
01:00:58]} {[%emt 00:07:22]} Qb6 {[%clk 01:01:35]} {[%emt 00:01:10]} 18. Qe3
{[%clk 01:01:10]} {[%emt 00:00:18]} g6 {[%clk 00:53:30]} {[%emt 00:08:35]} 19.
Rc2 {[%clk 00:54:47]} {[%emt 00:06:53]} Nb8 {[%clk 00:49:30]} {[%emt 00:04:30]}
20. Qf3 {[%clk 00:37:13]} {[%emt 00:18:03]} Rf8 {[%clk 00:37:24]} {[%emt
00:12:37]} 21. Qa3 {[%clk 00:37:35]} {[%emt 00:00:09]} Rg8 {[%clk 00:37:04]}
{[%emt 00:00:49]} 22. Rfc1 {[%clk 00:37:04]} {[%emt 00:01:01]} Nc6 {[%clk
00:36:00]} {[%emt 00:01:33]} 23. Ne2 {[%clk 00:36:32]} {[%emt 00:01:02]} Qb4
{[%clk 00:27:07]} {[%emt 00:09:24]} 24. Qf3 {[%clk 00:27:24]} {[%emt 00:09:38]}
Rf8 {[%clk 00:25:54]} {[%emt 00:01:43]} 25. a3 {[%clk 00:25:21]} {[%emt
00:02:33]} Qb6 {[%clk 00:21:23]} {[%emt 00:05:01]} 26. b4 {[%clk 00:20:44]}
{[%emt 00:05:08]} Rc8 {[%clk 00:09:52]} {[%emt 00:12:01]} 27. Rc5 {[%clk
00:18:56]} {[%emt 00:02:17]} Ne7 {[%clk 00:08:16]} {[%emt 00:02:06]} 28. Qf6
{[%clk 00:13:48]} {[%emt 00:05:38]} Kd7 {[%clk 00:07:33]} {[%emt 00:01:13]} 29.
Nf4 {[%clk 00:12:24]} {[%emt 00:01:54]} Rxc5 {[%clk 00:07:36]} {[%emt
00:00:26]} 30. dxc5 {[%clk 00:06:22]} {[%emt 00:06:34]} Qd8 {[%clk 00:06:54]}
{[%emt 00:01:12]} 31. b5 {[%clk 00:05:42]} {[%emt 00:01:09]} Nf5 {[%clk
00:05:10]} {[%emt 00:02:14]} 32. Qxd8+ {[%clk 00:02:25]} {[%emt 00:03:47]} Rxd8
{[%clk 00:05:03]} {[%emt 00:00:37]} 33. g3 {[%clk 00:02:34]} {[%emt 00:00:21]}
Nd4 {[%clk 00:03:39]} {[%emt 00:01:55]} 34. a4 {[%clk 00:02:24]} {[%emt
00:00:40]} Nf3+ {[%clk 00:03:53]} {[%emt 00:00:15]} 35. Kg2 {[%clk 00:02:47]}
{[%emt 00:00:07]} Nxe5 {[%clk 00:04:17]} {[%emt 00:00:05]} 36. Ne2 {[%clk
00:02:42]} {[%emt 00:00:35]} Nc4 {[%clk 00:03:37]} {[%emt 00:01:11]} 37. Nd4
{[%clk 00:02:54]} {[%emt 00:00:18]} Rc8 {[%clk 00:01:11]} {[%emt 00:02:56]} 38.
c6+ {[%clk 00:03:11]} {[%emt 00:00:13]} bxc6 {[%clk 00:01:24]} {[%emt
00:00:18]} 39. Nxc6 {[%clk 00:03:36]} {[%emt 00:00:05]} Rxc6 {[%clk 00:01:38]}
{[%emt 00:00:15]} 40. bxc6+ {[%clk 00:03:58]} {[%emt 00:00:08]} Kxc6 {[%clk
00:02:04]} {[%emt 00:00:04]} 41. Rb1 {[%clk 00:30:20]} {[%emt 00:04:08]} Kc7
{[%clk 00:31:53]} {[%emt 00:00:41]} 42. f3 {[%clk 00:24:41]} {[%emt 00:06:09]}
e5 {[%clk 00:31:32]} {[%emt 00:00:51]} 43. Kf2 {[%clk 00:23:27]} {[%emt
00:01:44]} a6 {[%clk 00:31:18]} {[%emt 00:00:44]} 44. g4 {[%clk 00:21:22]}
{[%emt 00:02:35]} Kd6 {[%clk 00:22:37]} {[%emt 00:09:11]} 45. Rb7 {[%clk
00:11:53]} {[%emt 00:10:00]} Ke6 {[%clk 00:22:58]} {[%emt 00:00:09]} 46. Rc7
{[%clk 00:10:02]} {[%emt 00:02:20]} a5 {[%clk 00:22:27]} {[%emt 00:01:01]} 47.
Rc6+ {[%clk 00:08:57]} {[%emt 00:01:36]} Kd7 {[%clk 00:22:37]} {[%emt
00:00:19]} 48. Ra6 {[%clk 00:09:03]} {[%emt 00:00:25]} Ke7 {[%clk 00:22:47]}
{[%emt 00:00:19]} 49. Ke2 {[%clk 00:08:32]} {[%emt 00:01:01]} Kd7 {[%clk
00:21:30]} {[%emt 00:01:48]} 50. gxh5 {[%clk 00:06:37]} {[%emt 00:02:24]} gxh5
{[%clk 00:21:32]} {[%emt 00:00:27]} 51. Rh6 {[%clk 00:06:51]} {[%emt 00:00:16]}
Ke7 {[%clk 00:18:42]} {[%emt 00:03:21]} 52. Rxh5 {[%clk 00:06:33]} {[%emt
00:00:47]} Kf6 {[%clk 00:18:55]} {[%emt 00:00:17]} 53. f4 {[%clk 00:04:20]}
{[%emt 00:02:44]} Ke6 {[%clk 00:14:50]} {[%emt 00:04:34]} 54. fxe5 {[%clk
00:04:34]} {[%emt 00:00:17]} Nxe5 {[%clk 00:14:36]} {[%emt 00:00:43]} 55. Ke3
{[%clk 00:03:31]} {[%emt 00:01:33]} Ng4+ {[%clk 00:13:00]} {[%emt 00:02:06]} 56.
Kd4 {[%clk 00:03:15]} {[%emt 00:00:47]} f5 {[%clk 00:13:11]} {[%emt 00:00:19]}
57. Rh8 {[%clk 00:02:20]} {[%emt 00:01:25]} f4 {[%clk 00:11:49]} {[%emt
00:01:52]} 58. Rf8 {[%clk 00:01:32]} {[%emt 00:01:18]} Nf6 {[%clk 00:12:09]}
{[%emt 00:00:09]} 59. Ra8 {[%clk 00:01:32]} {[%emt 00:00:31]} Ng4 {[%clk
00:12:07]} {[%emt 00:00:32]} 60. Rxa5 {[%clk 00:00:43]} {[%emt 00:01:19]} f3
{[%clk 00:11:07]} {[%emt 00:01:30]} 61. Ra6+ {[%clk 00:00:50]} {[%emt
00:00:23]} Kf5 {[%clk 00:11:07]} {[%emt 00:00:30]} 62. Kd3 {[%clk 00:01:09]}
{[%emt 00:00:11]} d4 {[%emt 00:02:36]} 63. Ra8 {[%clk 00:00:58]} Ke5 {[%clk
00:05:31]} {[%emt 00:04:40]} 64. Re8+ {[%clk 00:01:09]} {[%emt 00:00:18]} Kd5
{[%clk 00:05:10]} {[%emt 00:00:52]} 65. Rd8+ {[%clk 00:01:15]} {[%emt
00:00:25]} Ke5 {[%clk 00:04:20]} {[%emt 00:01:19]} 66. a5 {[%clk 00:01:03]}
{[%emt 00:00:42]} Nf2+ {[%clk 00:01:56]} {[%emt 00:02:53]} 67. Kc4 {[%emt
00:01:09]} Nd1 {[%clk 00:01:50]} 68. Re8+ {[%clk 00:01:00]} {[%emt 00:00:31]}
Kf4 {[%clk 00:01:12]} {[%emt 00:01:08]} 69. Kxd4 {[%clk 00:01:17]} {[%emt
00:00:13]} Nb2 {[%clk 00:01:03]} {[%emt 00:00:39]} 70. a6 {[%clk 00:01:26]}
{[%emt 00:00:21]} Na4 {[%clk 00:01:15]} {[%emt 00:00:17]} 71. a7 {[%clk
00:01:41]} {[%emt 00:00:16]} Nb6 {[%clk 00:01:31]} {[%emt 00:00:14]} 72. a8=Q
{[%clk 00:01:50]} {[%emt 00:00:21]} Nxa8 {[%clk 00:01:53]} {[%emt 00:00:08]} 73.
Rxa8 {[%clk 00:02:18]} {[%emt 00:00:03]} f2 {[%clk 00:01:46]} {[%emt 00:00:36]}
74. Rf8 {[%clk 00:02:43]} {[%emt 00:00:05]} Kg3 {[%clk 00:01:56]} {[%emt
00:00:19]} 75. h5 {[%clk 00:03:06]} {[%emt 00:00:08]} 1-0

[Event "Masters Tournament (MTO)"]
[Site "Biel, Switzerland"]
[Date "2026.07.18"]
[Round "6.18"]
[White "Malli, Suvirr"]
[Black "Hasenohr, Benedict"]
[Result "0-1"]
[TimeControl "100+30+30sec/move"]
[WhiteTitle "-"]
[BlackTitle "-"]
[WhiteFideId "1341855"]
[BlackFideId "1303309"]
[WhiteElo "2120"]
[BlackElo "2247"]

1. e4 {[%clk 01:40:56]} {[%emt 00:00:01]} e6 {[%clk 01:40:55]} {[%emt
00:00:06]} 2. d4 {[%clk 01:41:21]} {[%emt 00:00:07]} d5 {[%clk 01:41:21]}
{[%emt 00:00:02]} 3. Nc3 {[%clk 01:41:45]} {[%emt 00:00:05]} Bb4 {[%clk
01:41:46]} {[%emt 00:00:05]} 4. e5 {[%clk 01:42:10]} {[%emt 00:00:05]} c5
{[%clk 01:41:49]} {[%emt 00:00:26]} 5. a3 {[%clk 01:42:34]} {[%emt 00:00:06]}
Bxc3+ {[%clk 01:42:14]} {[%emt 00:00:05]} 6. bxc3 {[%clk 01:42:59]} {[%emt
00:00:05]} Ne7 {[%clk 01:42:39]} {[%emt 00:00:05]} 7. h4 {[%clk 01:43:23]}
{[%emt 00:00:06]} Nbc6 {[%clk 01:42:24]} {[%emt 00:00:45]} 8. h5 {[%clk
01:43:26]} {[%emt 00:00:26]} h6 {[%clk 01:42:50]} {[%emt 00:00:05]} 9. Qg4
{[%clk 01:43:38]} {[%emt 00:00:18]} Nf5 {[%clk 01:43:15]} {[%emt 00:00:06]} 10.
Bd3 {[%clk 01:42:46]} {[%emt 00:01:21]} O-O {[%clk 01:43:26]} {[%emt 00:00:19]}
11. Nf3 {[%clk 01:42:41]} {[%emt 00:00:36]} Qa5 {[%clk 01:42:11]} {[%emt
00:01:45]} 12. Bd2 {[%clk 01:42:31]} {[%emt 00:00:39]} Qa4 {[%clk 01:41:31]}
{[%emt 00:01:10]} 13. Qh3 {[%clk 01:38:59]} {[%emt 00:04:02]} f6 {[%clk
00:53:16]} {[%emt 00:48:45]} 14. g4 {[%clk 01:25:08]} {[%emt 00:14:20]} Nfe7
{[%clk 00:45:44]} {[%emt 00:08:03]} 15. exf6 {[%clk 01:08:55]} {[%emt
00:16:43]} Rxf6 {[%clk 00:46:09]} {[%emt 00:00:05]} 16. g5 {[%clk 01:08:53]}
{[%emt 00:00:32]} e5 {[%clk 00:44:25]} {[%emt 00:02:14]} 17. Qg2 {[%clk
01:07:54]} {[%emt 00:01:28]} hxg5 {[%clk 00:40:16]} {[%emt 00:04:40]} 18. Bxg5
{[%clk 00:48:14]} {[%emt 00:20:10]} Rxf3 {[%clk 00:40:18]} {[%emt 00:00:28]} 19.
Qxf3 {[%clk 00:47:54]} {[%emt 00:00:50]} e4 {[%clk 00:40:17]} {[%emt 00:00:32]}
20. Qg2 {[%clk 00:44:53]} {[%emt 00:03:30]} Qa5 {[%clk 00:39:58]} {[%emt
00:00:49]} 21. Bd2 {[%clk 00:43:24]} {[%emt 00:01:59]} Bf5 {[%clk 00:31:38]}
{[%emt 00:08:50]} 22. Rg1 {[%clk 00:30:47]} {[%emt 00:13:07]} g6 {[%clk
00:29:31]} {[%emt 00:02:37]} 23. Be2 {[%clk 00:30:19]} {[%emt 00:00:58]} Rf8
{[%clk 00:16:36]} {[%emt 00:13:25]} 24. hxg6 {[%clk 00:26:40]} {[%emt
00:04:08]} Nxg6 {[%clk 00:16:00]} {[%emt 00:01:06]} 25. Bg4 {[%clk 00:23:00]}
{[%emt 00:04:10]} Nce7 {[%clk 00:16:25]} {[%emt 00:00:05]} 26. Bxf5 {[%clk
00:22:51]} {[%emt 00:00:40]} Rxf5 {[%clk 00:16:50]} {[%emt 00:00:05]} 27. Qh3
{[%clk 00:22:04]} {[%emt 00:01:15]} Kf7 {[%clk 00:14:36]} {[%emt 00:02:46]} 28.
Qh7+ {[%clk 00:20:23]} {[%emt 00:02:11]} Kf6 {[%clk 00:15:02]} {[%emt
00:00:05]} 29. Qh2 {[%clk 00:16:02]} {[%emt 00:04:49]} Ke6 {[%clk 00:11:52]}
{[%emt 00:03:41]} 30. Qh6 {[%clk 00:13:34]} {[%emt 00:02:57]} Rf6 {[%clk
00:10:44]} {[%emt 00:01:39]} 31. Qh3+ {[%clk 00:08:54]} {[%emt 00:05:09]} Nf5
{[%clk 00:08:33]} {[%emt 00:02:41]} 32. c4 {[%clk 00:08:03]} {[%emt 00:01:21]}
Qd8 {[%clk 00:07:31]} {[%emt 00:01:33]} 33. Bg5 {[%clk 00:07:04]} {[%emt
00:01:28]} Qa5+ {[%clk 00:07:48]} {[%emt 00:00:14]} 34. Kd1 {[%clk 00:06:45]}
{[%emt 00:00:48]} cxd4 {[%clk 00:03:57]} {[%emt 00:04:22]} 35. cxd5+ {[%clk
00:02:49]} {[%emt 00:04:27]} Qxd5 {[%clk 00:04:23]} {[%emt 00:00:03]} 36. Bxf6
{[%clk 00:01:33]} {[%emt 00:01:46]} Kxf6 {[%clk 00:04:50]} {[%emt 00:00:03]} 37.
Qb3 {[%clk 00:01:01]} {[%emt 00:01:01]} Qc5 {[%clk 00:03:06]} {[%emt 00:02:15]}
38. Qb4 {[%clk 00:00:59]} {[%emt 00:00:31]} Qc7 {[%clk 00:02:50]} {[%emt
00:00:47]} 39. Rb1 {[%clk 00:00:41]} {[%emt 00:00:48]} Qh2 {[%clk 00:02:58]}
{[%emt 00:00:22]} 40. Rf1 {[%clk 00:00:38]} {[%emt 00:00:32]} Qf4 {[%clk
00:01:59]} {[%emt 00:01:30]} 41. Ke1 {[%clk 00:23:04]} {[%emt 00:08:04]} Ne5
{[%clk 00:22:57]} {[%emt 00:09:31]} 42. Rh1 {[%clk 00:15:48]} {[%emt 00:07:46]}
e3 {[%clk 00:17:36]} {[%emt 00:05:51]} 43. Qf8+ {[%clk 00:15:02]} {[%emt
00:01:17]} Nf7 {[%clk 00:17:58]} {[%emt 00:00:08]} 44. Rf1 {[%clk 00:11:09]}
{[%emt 00:04:22]} d3 {[%clk 00:16:31]} {[%emt 00:01:58]} 45. Qb4 {[%clk
00:07:27]} {[%emt 00:04:11]} dxc2 {[%clk 00:11:46]} {[%emt 00:05:15]} 46. Qc3+
{[%clk 00:02:19]} {[%emt 00:05:37]} Nd4 {[%clk 00:09:11]} {[%emt 00:03:06]} 47.
Ra1 {[%clk 00:01:41]} {[%emt 00:01:08]} e2 {[%clk 00:09:08]} {[%emt 00:00:33]}
48. Rg1 {[%clk 00:00:52]} {[%emt 00:01:20]} Ne5 {[%clk 00:06:39]} {[%emt
00:02:59]} 49. Rg3 {[%emt 00:01:07]} Qh4 {[%clk 00:06:24]} 50. Kd2 {[%clk
00:00:45]} {[%emt 00:00:45]} Qh6+ {[%clk 00:04:41]} {[%emt 00:02:13]} 51. Re3
{[%clk 00:00:52]} {[%emt 00:00:23]} Kf5 {[%clk 00:03:18]} {[%emt 00:01:53]} 52.
Qc8+ {[%clk 00:00:49]} {[%emt 00:00:33]} Kf4 {[%clk 00:02:54]} {[%emt
00:00:54]} 53. Qc7 {[%clk 00:00:47]} {[%emt 00:00:31]} Ndf3+ {[%clk 00:01:36]}
{[%emt 00:01:48]} 54. Kxe2 {[%clk 00:00:51]} {[%emt 00:00:27]} Qa6+ {[%clk
00:01:58]} {[%emt 00:00:08]} 0-1

[Event "Masters Tournament (MTO)"]
[Site "Biel, Switzerland"]
[Date "2026.07.18"]
[Round "6.19"]
[White "Schnell, Simon"]
[Black "Coban, Ege"]
[Result "1-0"]
[TimeControl "100+30+30sec/move"]
[WhiteTitle "-"]
[BlackTitle "-"]
[WhiteFideId "1345311"]
[BlackFideId "26320304"]
[WhiteElo "2211"]
[BlackElo "1986"]

1. d4 {[%clk 01:40:58]} Nf6 {[%clk 01:40:49]} {[%emt 00:00:09]} 2. c4 {[%clk
01:41:23]} {[%emt 00:00:06]} c5 {[%clk 01:41:04]} {[%emt 00:00:15]} 3. d5
{[%clk 01:41:49]} {[%emt 00:00:04]} b5 {[%clk 01:41:30]} {[%emt 00:00:04]} 4.
cxb5 {[%clk 01:42:14]} {[%emt 00:00:04]} a6 {[%clk 01:41:45]} {[%emt 00:00:16]}
5. b6 {[%clk 01:42:40]} {[%emt 00:00:04]} g6 {[%clk 01:41:50]} {[%emt
00:00:25]} 6. Nc3 {[%clk 01:42:36]} {[%emt 00:00:33]} Bg7 {[%clk 01:41:40]}
{[%emt 00:00:39]} 7. e4 {[%clk 01:42:49]} {[%emt 00:00:17]} d6 {[%clk
01:41:37]} {[%emt 00:00:35]} 8. Nf3 {[%clk 01:42:30]} {[%emt 00:00:48]} O-O
{[%clk 01:40:55]} {[%emt 00:01:12]} 9. Be2 {[%clk 01:42:00]} {[%emt 00:01:00]}
Nbd7 {[%clk 01:39:13]} {[%emt 00:02:14]} 10. a4 {[%clk 01:42:13]} {[%emt
00:00:17]} a5 {[%clk 01:33:53]} {[%emt 00:05:50]} 11. O-O {[%clk 01:40:53]}
{[%emt 00:01:49]} Nxb6 {[%clk 01:33:20]} {[%emt 00:01:03]} 12. Nd2 {[%clk
01:33:47]} {[%emt 00:07:36]} e6 {[%clk 01:30:48]} {[%emt 00:03:02]} 13. Nc4
{[%clk 01:19:18]} {[%emt 00:14:59]} exd5 {[%clk 01:25:16]} {[%emt 00:06:03]} 14.
exd5 {[%clk 01:19:42]} {[%emt 00:00:05]} Nxc4 {[%clk 01:24:00]} {[%emt
00:01:47]} 15. Bxc4 {[%clk 01:20:06]} {[%emt 00:00:04]} Ng4 {[%clk 01:23:04]}
{[%emt 00:01:27]} 16. Bf4 {[%clk 01:11:22]} {[%emt 00:09:14]} Rb8 {[%clk
01:14:33]} {[%emt 00:09:01]} 17. Bb5 {[%clk 01:07:38]} {[%emt 00:04:14]} h5
{[%clk 01:07:54]} {[%emt 00:07:08]} 18. Qd2 {[%emt 00:09:00]} Bf5 {[%clk
01:03:28]} 19. Rae1 {[%clk 00:52:21]} {[%emt 00:12:13]} h4 {[%clk 00:58:14]}
{[%emt 00:05:44]} 20. Bg5 {[%clk 00:48:20]} {[%emt 00:04:31]} Bf6 {[%clk
00:57:06]} {[%emt 00:01:38]} 21. Bxf6 {[%clk 00:48:37]} {[%emt 00:00:13]} Nxf6
{[%clk 00:49:57]} {[%emt 00:07:39]} 22. h3 {[%clk 00:44:34]} {[%emt 00:04:31]}
Kg7 {[%clk 00:48:54]} {[%emt 00:01:35]} 23. Re3 {[%clk 00:41:44]} {[%emt
00:03:19]} Nh5 {[%clk 00:44:35]} {[%emt 00:04:49]} 24. Rf3 {[%clk 00:39:18]}
{[%emt 00:02:57]} Rb7 {[%clk 00:43:06]} {[%emt 00:01:59]} 25. Re1 {[%clk
00:36:21]} {[%emt 00:03:26]} Re7 {[%clk 00:41:47]} {[%emt 00:01:49]} 26. Ree3
{[%clk 00:35:03]} {[%emt 00:01:48]} f6 {[%clk 00:40:19]} {[%emt 00:01:59]} 27.
Rxe7+ {[%clk 00:31:17]} {[%emt 00:04:16]} Qxe7 {[%clk 00:40:38]} {[%emt
00:00:12]} 28. Re3 {[%clk 00:31:42]} {[%emt 00:00:04]} Qd8 {[%clk 00:37:25]}
{[%emt 00:03:43]} 29. Qe1 {[%clk 00:31:26]} {[%emt 00:00:46]} Nf4 {[%clk
00:36:44]} {[%emt 00:01:11]} 30. Re7+ {[%clk 00:28:13]} {[%emt 00:03:43]} Rf7
{[%clk 00:37:04]} {[%emt 00:00:10]} 31. Re8 {[%clk 00:28:17]} {[%emt 00:00:25]}
Qc7 {[%clk 00:36:44]} {[%emt 00:00:51]} 32. Qe3 {[%clk 00:26:41]} {[%emt
00:02:06]} g5 {[%clk 00:35:08]} {[%emt 00:02:05]} 33. Bc6 {[%clk 00:24:29]}
{[%emt 00:02:42]} Bd3 {[%clk 00:31:06]} {[%emt 00:04:33]} 34. Kh2 {[%clk
00:19:26]} {[%emt 00:05:32]} Bf1 {[%clk 00:28:13]} {[%emt 00:03:24]} 35. Nb5
{[%clk 00:17:36]} {[%emt 00:02:20]} Bxb5 {[%clk 00:28:21]} {[%emt 00:00:22]} 36.
axb5 {[%clk 00:17:59]} {[%emt 00:00:06]} a4 {[%clk 00:25:21]} {[%emt 00:03:31]}
37. Ra8 {[%clk 00:15:40]} {[%emt 00:02:49]} Ng6 {[%clk 00:23:01]} {[%emt
00:02:50]} 38. Rxa4 {[%clk 00:14:33]} {[%emt 00:01:37]} Re7 {[%clk 00:23:03]}
{[%emt 00:00:28]} 39. Qb3 {[%clk 00:11:14]} {[%emt 00:03:49]} c4 {[%clk
00:18:54]} {[%emt 00:04:40]} 40. Qxc4 {[%clk 00:09:59]} {[%emt 00:01:44]} Nf4
{[%clk 00:16:30]} {[%emt 00:02:54]} 41. Qd4 {[%clk 00:07:30]} {[%emt 00:02:59]}
Ne2 {[%clk 00:15:11]} {[%emt 00:01:49]} 42. b6 {[%clk 00:06:34]} {[%emt
00:01:25]} Qc8 {[%clk 00:15:13]} {[%emt 00:00:28]} 43. Qg4 {[%clk 00:05:30]}
{[%emt 00:01:34]} Qd8 {[%clk 00:13:23]} {[%emt 00:02:21]} 44. Ra7 {[%clk
00:05:14]} {[%emt 00:00:46]} Nf4 {[%clk 00:12:32]} {[%emt 00:01:21]} 45. Rxe7+
{[%clk 00:04:53]} {[%emt 00:00:50]} Qxe7 {[%clk 00:12:58]} {[%emt 00:00:05]} 46.
Qd7 {[%clk 00:04:53]} {[%emt 00:00:29]} Nxd5 {[%clk 00:12:55]} {[%emt
00:00:34]} 47. b7 {[%clk 00:04:57]} {[%emt 00:00:27]} 1-0